fUSD/lending_fUSD_20240628
["ID","MTS","AMOUNT","RATE_DAILY","PERIOD"]
[330558992,1719567051134,-274.77996624,0.00019178,2]
[330558993,1719567051143,-500.0,0.00019178,2]
[330558994,1719567051153,-500.0,0.00019178,2]
[330558995,1719567051162,-1216.64,0.00019178,2]
[330558996,1719567051171,-1152.81,0.00019178,2]
[330558997,1719567051180,-656.77,0.00019178,2]
[330558998,1719567051190,-1347.05,0.00019178,2]
[330558999,1719567051199,-500.0,0.00019178,2]
[330559000,1719567051208,-500.0,0.00019178,2]
[330559001,1719567051217,-500.0,0.00019178,2]
[330559002,1719567051226,-3014.34,0.00019178,2]
[330559003,1719567051235,-1006.88,0.00019178,2]
[330559004,1719567051245,-1013.81,0.00019178,2]
[330559005,1719567051256,-500.0,0.00019178,2]
[330559006,1719567051266,-500.0,0.00019178,2]
[330559007,1719567051275,-500.0,0.00019178,2]
[330559008,1719567051284,-1496.69,0.00019178,2]
[330559009,1719567051294,-172.93061085,0.00019178,2]
[330559010,1719567051303,-2577.23,0.00019178,2]
[330559011,1719567051313,-500.0,0.00019178,2]
[330559012,1719567051322,-500.0,0.00019178,2]
[330559013,1719567051332,-1071.67,0.00019178,2]
[330559014,1719567051342,-1370.45,0.00019178,2]
[330559015,1719567051352,-500.0,0.00019178,2]
[330559016,1719567051362,-500.0,0.00019178,2]
[330559017,1719567051372,-1281.64,0.00019178,2]
[330559018,1719567051382,-500.0,0.00019178,2]
[330559019,1719567051392,-1614.24,0.00019178,2]
[330559020,1719567051403,-3538.04,0.00019178,2]
[330559021,1719567051412,-500.0,0.00019178,2]
[330559022,1719567051421,-500.0,0.00019178,2]
[330559023,1719567051430,-1309.61,0.00019178,2]
[330559024,1719567051441,-3179.44,0.00019178,2]
[330559025,1719567051451,-500.0,0.00019178,2]
[330559026,1719567051461,-574.10285965,0.00019178,2]
[330559027,1719567051470,-260.262568,0.00019178,2]
[330559028,1719567051479,-500.0,0.00019178,2]
[330559029,1719567051488,-500.0,0.00019178,2]
[330559030,1719567051497,-113.85187426,0.00019178,2]
[330559031,1719567051512,-1734.05812574,0.00019178,2]
[330559032,1719567051521,-500.0,0.00019178,2]
[330559033,1719567051530,-500.0,0.00019178,2]
[330559034,1719567051539,-2537.25792429,0.00019178,2]
[330559035,1719567051560,-286.01207571,0.00019178,2]
[330559036,1719567051569,-889.54343216,0.00019178,2]
[330559037,1719567051580,-1412.93673964,0.00019178,2]
[330559038,1719567051591,-619.76020313,0.00019178,2]
[330559039,1719567051602,-541.97962507,0.00019178,2]
[330559040,1719567051611,-500.0,0.00019178,2]
[330559041,1719567051620,-3947.42,0.00019178,2]
[330559042,1719567051629,-1850.96,0.00019178,2]
[330559043,1719567051638,-500.0,0.00019178,2]
[330559044,1719567051647,-500.0,0.00019178,2]
[330559045,1719567051656,-500.0,0.00019178,2]
[330559046,1719567051665,-3149.74,0.00019178,2]
[330559047,1719567051674,-213.095971,0.00019178,2]
[330559048,1719567051683,-594.77,0.00019178,2]
[330559049,1719567051693,-500.0,0.00019178,2]
[330559050,1719567051702,-1931.35,0.00019178,2]
[330559051,1719567051711,-500.0,0.00019178,2]
[330559052,1719567051720,-500.0,0.00019178,2]
[330559053,1719567051729,-3602.92,0.00019178,2]
[330559054,1719567051738,-576.24612156,0.00019178,2]
[330559055,1719567051750,-682.94387844,0.00019178,2]
[330559056,1719567051759,-500.0,0.00019178,2]
[330559057,1719567051769,-500.0,0.00019178,2]
[330559058,1719567051778,-1998.98,0.00019178,2]
[330559059,1719567051787,-1032.70133126,0.00019178,2]
[330559060,1719567051807,-1279.26,0.00019178,2]
[330559061,1719567051819,-364.42866874,0.00019178,2]
[330559062,1719567051829,-763.7,0.00019178,2]
[330559063,1719567051838,-500.0,0.00019178,2]
[330559064,1719567051847,-1362.64941626,0.00019178,2]
[330559065,1719567051865,-393.31131779,0.00019178,2]
[330559066,1719567275290,1405.62229413,0.00031226,30]
[330559067,1719567289519,8660.72078813,0.00031226,30]
[330559070,1719567400116,1000.0,0.00031226,30]
[330559071,1719567401356,1000.0,0.00031226,32]
[330559072,1719567401730,1000.0,0.00031226,34]
[330559073,1719567402196,1000.0,0.00031226,36]
[330559074,1719567402708,1000.0,0.00031226,38]
[330559075,1719567403355,569.74,0.00031226,40]
[330559076,1719567504151,3000.0,0.00031226,30]
[330559077,1719567937855,1000.0,0.00031233,30]
[330559078,1719567955640,150.1,0.00031233,30]
[330559079,1719568125929,-591.35743609,0.00011271,2]
[330559080,1719568125952,-992.64529874,0.00011342,2]
[330559081,1719568125977,-992.64529872,0.00011371,2]
[330559082,1719568125999,-992.64529872,0.000114,2]
[330559083,1719568126021,-159.68599667,0.00011442,2]
[330559084,1719568126044,-1052.180284,0.00011442,2]
[330559085,1719568126069,-151.39412324,0.000115,2]
[330559086,1719568126094,-300.0,0.00011699,2]
[330559087,1719568126119,-15908.5514,0.000117,2]
[330559088,1719568126143,-22324.85545764,0.000118,2]
[330559089,1719568132449,331.70440486,0.00011242,2]
[330559119,1719568161105,263.41362794,0.00011242,2]
[330559120,1719568167414,411.47785028,0.00011242,2]
[330559122,1719568168261,155.0,0.00011242,2]
[330559124,1719568172962,181.08184228,0.00011242,2]
[330559125,1719568174932,160.0,0.00011242,2]
[330559126,1719568175270,20312.51943268,0.00011242,2]
[330559127,1719568176658,160.06787872,0.00011242,2]
[330559128,1719568202986,150.0,0.00011242,2]
[330559129,1719568203183,150.0,0.00011242,2]
[330559130,1719568203382,150.0,0.00011242,2]
[330559131,1719568203587,150.0,0.00011242,2]
[330559132,1719568203773,150.0,0.00011242,2]
[330559133,1719568205114,150.0,0.00011242,2]
[330559134,1719568205272,150.0,0.00011242,2]
[330559135,1719568205356,297.17406985,0.00011242,2]
[330559151,1719568232116,-159.68599667,0.00012675,2]
[330559152,1719568232126,-507.67637859,0.00013472,2]
[330559153,1719568232137,-508.47198714,0.00013472,2]
[330559154,1719568232149,-1779.07163427,0.00013472,2]
[330559155,1719568232160,-2829.21023985,0.00013472,2]
[330559156,1719568232170,-263.41362794,0.00013626,2]
[330559157,1719568232180,-155.77707395,0.00013626,2]
[330559158,1719568232189,-24695.81662037,0.00013626,2]
[330559159,1719568232199,-163.15062281,0.00013626,2]
[330559160,1719568232209,-552.6847755,0.00013626,2]
[330559161,1719568232219,-181.08184228,0.00013626,2]
[330559162,1719568232231,-14815.87844708,0.00013626,2]
[330559163,1719568232244,-471.75317277,0.00013626,2]
[330559164,1719568232306,-598.795,0.00013626,2]
[330559165,1719568232317,-4426.09281283,0.00013626,2]
[330559166,1719568232327,-411.47785028,0.00013626,2]
[330559167,1719568232337,-204.75806513,0.00013626,2]
[330559168,1719568232347,-150.0,0.0001389,2]
[330559169,1719568232356,-170.51928651,0.00013907,2]
[330559170,1719568232366,-3056.29953387,0.00013907,2]
[330559171,1719568232378,-422.14997022,0.00013907,2]
[330559172,1719568232387,-159.68599667,0.00013907,2]
[330559173,1719568232396,-606.52415414,0.00013907,2]
[330559174,1719568232407,-291.1,0.0001399,3]
[330559175,1719568232416,-5016.28291297,0.00014,2]
[330559176,1719568232428,-5150.10157928,0.00014,2]
[330559177,1719568232439,-673.43302,0.00014,2]
[330559186,1719568238510,-1794.54613393,0.00013626,2]
[330559188,1719568238520,-7775.60386607,0.00014,2]
[330559189,1719568238534,-254723.51000002,0.00014,2]
[330559190,1719568238577,-44535.66032397,0.00014,2]
[330559314,1719568240002,-3112.55,0.00014,2]
[330559316,1719568240018,-6673.4610308,0.00014,2]
[330559319,1719568240034,-10119.27688512,0.00014,2]
[330559333,1719568240163,-819.45729106,0.00014,2]
[330559335,1719568240176,-59129.52222122,0.00014,2]
[330559338,1719568240191,-376.90012196,0.00014,2]
[330559340,1719568240207,-364.84499993,0.00014,2]
[330559343,1719568240222,-16072.87113329,0.00014,2]
[330559354,1719568240338,-360.46365637,0.00014,2]
[330559357,1719568240354,-807.36831157,0.00014,2]
[330559360,1719568240370,-2818.80991683,0.00014,2]
[330559362,1719568240386,-378.8713931,0.00014,2]
[330559365,1719568240399,-310000.0,0.00014,2]
[330559367,1719568240412,-40713.45040144,0.00014,2]
[330559377,1719568240504,-345756.51062395,0.00014,2]
[330559380,1719568240519,-173344.00898745,0.00014,2]
[330559383,1719568240535,-566.18888113,0.00014,2]
[330559385,1719568240552,-5373.89872731,0.00014,2]
[330559388,1719568240569,-277.7172083,0.00014,2]
[330559392,1719568244127,-1960.90527917,0.00014,2]
[330559393,1719568244140,-674.44,0.00014,2]
[330559394,1719568244152,-1044.68332956,0.00014,2]
[330559395,1719568244259,-5692.33844,0.00014,2]
[330559396,1719568244271,-2044.08986171,0.00014,2]
[330559397,1719568244381,-62033.64929949,0.00014,2]
[330559398,1719568244393,-353.44412154,0.00014,2]
[330559399,1719568244404,-1968.09619443,0.00014,2]
[330559400,1719568244417,-16231.64763023,0.00014,2]
[330559431,1719568246387,-818.61317494,0.00014,2]
[330559432,1719568246400,-5570.45453968,0.00014,2]
[330559435,1719568301885,4481.3621,0.00011242,2]
[330559436,1719568328564,300.28666289,0.00011242,2]
[330559446,1719568342835,4877.15153668,0.00011242,2]
[330559553,1719569296610,746.09,0.00010733,2]
[330559554,1719569332509,411.47785028,0.00010733,2]
[330559571,1719569409912,321.77661134,0.00010733,2]
[330559572,1719569415979,607.90743602,0.00010733,2]
[330559573,1719569416995,263.41362794,0.00010733,2]
[330559583,1719569432809,-9236.41322618,0.00011097,2]
[330559584,1719569432818,-254.31058783,0.00011098,2]
[330559585,1719569432827,-2198.85723835,0.00011098,2]
[330559586,1719569432838,-156.78767382,0.00011098,2]
[330559587,1719569432847,-24682.08289423,0.00011199,2]
[330559588,1719569432856,-15423.93998128,0.00011199,2]
[330559589,1719569432865,-533.11260756,0.00011199,2]
[330559590,1719569432874,-168.53,0.00012618,2]
[330559591,1719569432882,-250.0,0.00012623,2]
[330559592,1719569432892,-23684.28,0.00012633,2]
[330559593,1719569432902,-517.29,0.00012986,2]
[330559594,1719569432912,-746.09,0.00012997,2]
[330559595,1719569432921,-411.47785028,0.00013009,2]
[330559596,1719569432932,-150.0,0.00013055,2]
[330559597,1719569432941,-1453.04,0.00013055,2]
[330559598,1719569432951,-189.15,0.00013055,2]
[330559599,1719569432960,-499.99,0.00013055,2]
[330559600,1719569432969,-151.56,0.00013153,2]
[330559601,1719569432978,-151.56,0.00013191,2]
[330559602,1719569432988,-151.56,0.00013229,2]
[330559603,1719569433000,-151.56,0.00013267,2]
[330559604,1719569433010,-151.56,0.00013305,2]
[330559605,1719569433019,-151.56,0.00013343,2]
[330559606,1719569433028,-151.56,0.00013381,2]
[330559608,1719569433037,-151.56,0.00013419,2]
[330559610,1719569433047,-151.56,0.00013457,2]
[330559611,1719569433056,-151.56,0.00013496,2]
[330559612,1719569433065,-25377.13,0.00013517,2]
[330559613,1719569433074,-151.56,0.00013534,2]
[330559614,1719569433083,-151.56,0.00013572,2]
[330559615,1719569433093,-1852.42,0.00013597,2]
[330559616,1719569433102,-151.56,0.0001361,2]
[330559617,1719569433111,-300.14535077,0.00013626,2]
[330559618,1719569433120,-151.56,0.00013648,2]
[330559619,1719569433129,-151.56,0.00013686,2]
[330559620,1719569433138,-250.0,0.00013693,2]
[330559621,1719569433149,-207.57,0.00013699,2]
[330559622,1719569433158,-1256.3,0.00013699,2]
[330559623,1719569433168,-151.56,0.00013724,2]
[330559624,1719569433177,-707.53184335,0.00013736,2]
[330559625,1719569433190,-248.57884705,0.00013736,2]
[330559626,1719569433199,-3986.46907326,0.00013736,2]
[330559627,1719569433211,-424.54627044,0.00013736,2]
[330559628,1719569433222,-303.48820049,0.00013736,2]
[330559629,1719569433231,-416.4712043,0.00013751,2]
[330559630,1719569433240,-151.56,0.00013762,2]
[330559631,1719569433250,-384.88235122,0.00013766,2]
[330559632,1719569433259,-151.56,0.000138,2]
[330559633,1719569433268,-151.56,0.00013838,2]
[330559634,1719569433277,-174.08619548,0.000139,2]
[330559635,1719569433286,-170.51928651,0.000139,2]
[330559636,1719569433296,-1577.672762,0.000139,2]
[330559637,1719569433308,-781.95019923,0.000139,2]
[330559638,1719569433321,-2130.44985288,0.000139,2]
[330559639,1719569433333,-617.79233046,0.000139,2]
[330559640,1719569433343,-209.34479239,0.000139,2]
[330559641,1719569433356,-1727.37872176,0.000139,2]
[330559642,1719569433417,-329.14260328,0.000139,2]
[330559643,1719569433428,-922.71259468,0.000139,2]
[330559644,1719569433437,-404.34943608,0.000139,2]
[330559645,1719569433447,-299.32245898,0.000139,2]
[330559646,1719569433456,-577.15940207,0.000139,2]
[330559647,1719569433465,-156.3638671,0.00013925,2]
[330559648,1719569433474,-9999.99,0.0001399,2]
[330559649,1719569433484,-152.3647633,0.0001399,2]
[330559650,1719569433493,-1033.03,0.0001399,2]
[330559651,1719569433502,-1033.03,0.0001399,2]
[330559652,1719569433511,-1033.03,0.0001399,2]
[330559653,1719569433520,-1033.03,0.0001399,2]
[330559654,1719569433528,-1033.03,0.0001399,2]
[330559655,1719569433538,-1000.0,0.00013999,2]
[330559656,1719569433548,-213558.76963822,0.00014,2]
[330559657,1719569433558,-3088.5955,0.00014,2]
[330559658,1719569433570,-257.69726089,0.00014,2]
[330559659,1719569433580,-9678.47142919,0.00014,2]
[330559660,1719569433706,-5530.06602368,0.00014,2]
[330559661,1719569433718,-4799.61759896,0.00014,2]
[330559662,1719569433729,-284882.47845655,0.00014,2]
[330559663,1719569433741,-821.72,0.00014,2]
[330559664,1719569433752,-654.8237749,0.00014,2]
[330559665,1719569433763,-407835.69732061,0.00014,2]
[330559666,1719569433775,-13111.38324138,0.00014,2]
[330559667,1719569433786,-418.90217464,0.00014,2]
[330559668,1719569434478,327.82192927,0.00010733,2]
[330559669,1719569438195,-1068.89864221,0.00014,2]
[330559674,1719569438357,-2104.93626584,0.00014,2]
[330559675,1719569438369,-9301.5,0.00014,2]
[330559676,1719569438381,-1512.75792132,0.00014,2]
[330559677,1719569438392,-654.12187605,0.00014,2]
[330559678,1719569438403,-2063.85677106,0.00014,2]
[330559679,1719569438414,-800.16399767,0.00014,2]
[330559680,1719569438426,-248888.00000024,0.00014,2]
[330559681,1719569438511,-284.64340056,0.00013954,2]
[330559841,1719569440421,-407.79472087,0.00013771,2]
[330559842,1719569440431,-92.22056834,0.00013954,2]
[330559843,1719569440440,-123.05471079,0.00014,2]
[330559844,1719569440451,-1244.1,0.00014,2]
[330559845,1719569440594,-9023.15631103,0.00014,2]
[330559846,1719569440608,-8947.21879473,0.00014,2]
[330559847,1719569440620,-8943.78386462,0.00014,2]
[330559848,1719569440631,-9077.54866152,0.00014,2]
[330559849,1719569440643,-8943.84023489,0.00014,2]
[330559850,1719569440655,-147828.69725908,0.00014,2]
[330559851,1719569440667,-969.65529697,0.00014,2]
[330559852,1719569440763,-561.35192212,0.00014,2]
[330559853,1719569440776,-275.950685,0.00014,2]
[330559854,1719569440788,-273.03265576,0.00014,2]
[330559855,1719569440800,-417.81286233,0.00014,2]
[330559856,1719569440811,-1737.35502401,0.00014,2]
[330559857,1719569440825,-356.69583525,0.00014,2]
[330559858,1719569440837,-1331.26512134,0.00014,2]
[330559859,1719569440848,-614.62443252,0.00014,2]
[330559885,1719569441395,-13640.20182515,0.00014,2]
[330559893,1719569443361,-1298.61521635,0.00014,2]
[330559895,1719569443712,-297.25106533,0.00014,2]
[330559962,1719569448127,-219.48903513,0.000139,2]
[330559963,1719569448136,-344.65064762,0.000139,2]
[330559964,1719569448147,-539.92876268,0.000139,2]
[330559965,1719569448156,-91.50236092,0.00014,2]
[330559979,1719569661954,490.0,0.00031231,30]
[330559981,1719569740546,257.0,0.00031231,30]
[330559983,1719569769645,150.0,0.00031231,30]
[330559989,1719569870619,160.0513,0.00010997,2]
[330559993,1719569925976,309.51184135,0.00010997,2]
[330559994,1719569932890,17317.55001266,0.00010997,2]
[330559995,1719569945020,411.47785028,0.00010997,2]
[330560001,1719570050110,411.47785028,0.00010997,2]
[330560005,1719570141069,411.47785028,0.00010997,2]
[330560008,1719570158896,2000.0,0.00026,120]
[330560017,1719570372905,7500.0,0.00031228,30]
[330560034,1719570517156,785.35,0.00010893,2]
[330560084,1719570588536,411.47785028,0.00010893,2]
[330560086,1719570632857,-9236.41322618,0.00011097,2]
[330560087,1719570632867,-4714.50354419,0.00011098,2]
[330560088,1719570632877,-155.62632143,0.00011098,2]
[330560089,1719570632887,-719.11613973,0.00011098,2]
[330560090,1719570632897,-533.11260756,0.00011098,2]
[330560091,1719570632907,-210.02763994,0.00011098,2]
[330560092,1719570632916,-155.35129675,0.00011098,2]
[330560093,1719570632926,-1151.97,0.00012797,2]
[330560094,1719570632935,-150.0,0.00012814,2]
[330560095,1719570632944,-250.0,0.00012895,2]
[330560096,1719570632953,-6287.99,0.00012982,2]
[330560097,1719570632967,-785.35,0.00013157,2]
[330560098,1719570632977,-411.47785028,0.00013203,2]
[330560099,1719570632986,-300.21600683,0.00013329,2]
[330560100,1719570632995,-1000.0,0.0001335,2]
[330560101,1719570633006,-1489.71,0.00013419,2]
[330560102,1719570633015,-177.51,0.00013423,2]
[330560104,1719570633024,-150.11,0.0001345,2]
[330560107,1719570633036,-999.99,0.0001345,2]
[330560110,1719570633046,-375.25738454,0.0001345,2]
[330560117,1719570633058,-34.57261546,0.0001345,2]
[330560119,1719570633066,-468.5692404,0.00013516,2]
[330560125,1719570633078,-487.15087929,0.00013516,2]
[330560129,1719570633087,-1270.37297567,0.00013516,2]
[330560132,1719570633097,-150.11,0.00013538,2]
[330560134,1719570633106,-150.99,0.00013538,2]
[330560136,1719570633115,-150.11,0.00013625,2]
[330560137,1719570633124,-3059.03,0.00013653,2]
[330560139,1719570633134,-166.05,0.00013699,2]
[330560140,1719570633144,-730.94474504,0.00013699,2]
[330560141,1719570633155,-361.15942254,0.00013699,2]
[330560142,1719570633166,-2914.44583242,0.00013699,2]
[330560143,1719570633175,-200.0,0.00013699,2]
[330560144,1719570633184,-178.13163611,0.00013699,2]
[330560145,1719570633247,-1111.60207636,0.00013699,2]
[330560146,1719570633258,-1461.26628753,0.00013699,2]
[330560147,1719570633267,-1667.0,0.00013699,2]
[330560148,1719570633276,-500.0,0.00013699,2]
[330560149,1719570633287,-150.11,0.00013713,2]
[330560150,1719570633296,-1015.73180718,0.00013736,2]
[330560151,1719570633305,-1197.94585786,0.000138,2]
[330560152,1719570633314,-150.11,0.000138,2]
[330560153,1719570633323,-437.25918262,0.00013864,2]
[330560154,1719570633332,-384.88235122,0.00013882,2]
[330560155,1719570633341,-150.11,0.00013888,2]
[330560156,1719570633350,-753.59338141,0.00013889,2]
[330560157,1719570633360,-475.2316268,0.00013899,2]
[330560158,1719570633369,-201.79714572,0.00013899,2]
[330560159,1719570633378,-7914.83235941,0.000139,2]
[330560160,1719570633390,-2231.96012977,0.000139,2]
[330560161,1719570633401,-351.70158978,0.000139,2]
[330560162,1719570633412,-8871.90818324,0.000139,2]
[330560163,1719570633423,-1042.5,0.000139,2]
[330560164,1719570633434,-12354.2672378,0.000139,2]
[330560165,1719570633443,-156.36386708,0.000139,2]
[330560166,1719570633452,-2839.5336579,0.000139,2]
[330560167,1719570633464,-553.28150867,0.000139,2]
[330560168,1719570633661,-73.95193343,0.000139,2]
[330560169,1719570633670,-5791.04806657,0.000139,2]
[330560170,1719570638440,-199.81852118,0.00013899,2]
[330560172,1719570638450,-253.90432169,0.00013899,2]
[330560174,1719570638460,-680.18269956,0.000139,2]
[330560179,1719570638612,-3374.01125469,0.000139,2]
[330560180,1719570638624,-1335.35770528,0.000139,2]
[330560181,1719570638635,-8296.49681285,0.000139,2]
[330560182,1719570638645,-344.65064762,0.000139,2]
[330560183,1719570638656,-2231.0588316,0.000139,2]
[330560184,1719570638665,-183.31556254,0.000139,2]
[330560185,1719570638675,-1393.87944465,0.000139,2]
[330560186,1719570638685,-1197.94585786,0.000139,2]
[330560187,1719570638695,-158.14620796,0.00013964,2]
[330560188,1719570638705,-4226.44473726,0.00013964,2]
[330560189,1719570638716,-1032.38371257,0.00013964,2]
[330560190,1719570638726,-158.90701844,0.00013964,2]
[330560191,1719570638735,-150.11,0.00013976,2]
[330560192,1719570638744,-63.61947339,0.00013989,2]
[330560193,1719570638756,-178.50507193,0.00013989,2]
[330560194,1719570638766,-156.10358679,0.00013989,2]
[330560195,1719570638776,-298.88353231,0.00013989,2]
[330560196,1719570638786,-660.50574852,0.00013989,2]
[330560198,1719570638798,-155.34634038,0.00013999,2]
[330560199,1719570638807,-203.85879529,0.00013999,2]
[330560201,1719570638817,-309.66016011,0.00013999,2]
[330560202,1719570638827,-468.24460733,0.00013999,2]
[330560204,1719570638837,-155.0,0.00013999,2]
[330560205,1719570638847,-3413.89215734,0.00014,2]
[330560206,1719570638858,-3114.34186552,0.00014,2]
[330560207,1719570638871,-830.58921989,0.00014,2]
[330560208,1719570638882,-1327.72878655,0.00014,2]
[330560209,1719570638951,-19534.515,0.00014,2]
[330560210,1719570638965,-12545.6777668,0.00014,2]
[330560211,1719570638978,-540.65357155,0.00014,2]
[330560212,1719570638992,-9486.55221922,0.00014,2]
[330560213,1719570639004,-1632.3621893,0.00014,2]
[330560214,1719570639016,-346.39405395,0.00014,2]
[330560215,1719570639031,-288.12424113,0.00014,2]
[330560341,1719570640740,-250.0,0.00012782,2]
[330560342,1719570640752,-412.73865454,0.00013899,2]
[330560343,1719570640762,-820.19609444,0.00014,2]
[330560344,1719570640775,-30150.50988465,0.00014,2]
[330560345,1719570640787,-467.31889,0.00014,2]
[330560346,1719570640801,-309.15,0.00014,2]
[330560347,1719570640813,-255151.72642388,0.00014,2]
[330560348,1719570640826,-260.04384227,0.00014,2]
[330560349,1719570640839,-612.99,0.00014,2]
[330560350,1719570640854,-451.575,0.00014,2]
[330560351,1719570641013,-3020.78421957,0.00014,2]
[330560352,1719570641025,-2168.59643,0.00014,2]
[330560353,1719570641037,-370.55,0.00014,2]
[330560354,1719570641052,-542.70878457,0.00014,2]
[330560355,1719570641064,-95964.10279248,0.00014,2]
[330560356,1719570641076,-919.2683,0.00014,2]
[330560357,1719570641088,-697626.43898151,0.00014,2]
[330560358,1719570641099,-355690.41609173,0.00014,2]
[330560359,1719570641111,-91687.91244299,0.00014,2]
[330560360,1719570641123,-165494.52809479,0.00014,2]
[330560715,1719570644443,-155.0,0.00013999,2]
[330560717,1719570644454,-2858.1740282,0.00014,2]
[330560729,1719570644573,-1408.61955566,0.00014,2]
[330560740,1719570644748,-1310.01098762,0.00014,2]
[330561039,1719570647377,-596.40169867,0.00014,2]
[330561041,1719570647389,-673.58,0.00014,2]
[330561126,1719570849399,3672.66630357,0.00011197,2]
[330561127,1719570853274,10721.77868935,0.00011,2]
[330561128,1719570860339,1269.59042167,0.00011199,2]
[330561129,1719570871408,9337.01230836,6.94e-05,2]
[330561130,1719570930966,209.60606053,6.94e-05,2]
[330561131,1719570933742,365.78781787,0.00011199,2]
[330561134,1719570952576,400.09114959,0.00011199,2]
[330561135,1719570955728,205.0,9.8e-05,2]
[330561136,1719570967000,-243.19,0.00012797,2]
[330561137,1719570967027,-1428.0,0.00013127,2]
[330561138,1719570967053,-173.7200528,0.00013802,2]
[330561139,1719570967082,-174.88821649,0.00013802,2]
[330561140,1719570967107,-491.61691634,0.00013802,2]
[330561141,1719570967135,-2113.09177,0.0001386,2]
[330561142,1719570967164,-1239.49304437,0.0001388,2]
[330561143,1719570970469,411.47785028,0.00011199,2]
[330561150,1719571077976,517.74877722,0.00011199,2]
[330561154,1719571143989,155.0,0.00011199,2]
[330561157,1719571182927,9697.98558768,0.00011199,2]
[330561159,1719571224982,291.52527445,0.00011199,2]
[330561160,1719571250453,3030.26518604,0.00011199,2]
[330561162,1719571252614,944.60374233,0.00011199,2]
[330561163,1719571270671,3398.22978452,0.00011199,2]
[330561165,1719571342539,1286.44742731,0.00011199,2]
[330561168,1719571393783,4086.18361923,0.00011199,2]
[330561176,1719571567371,165.03,0.00010225,2]
[330561178,1719571587693,-300.0,0.00011096,2]
[330561179,1719571587716,-4714.50354419,0.00011097,2]
[330561180,1719571587739,-792.31207211,0.00011097,2]
[330561181,1719571587762,-5753.6843837,0.00011097,2]
[330561194,1719571652289,165.79,0.00010377,2]
[330561195,1719571687712,553.50698813,0.00010377,2]
[330561196,1719571695180,155.19002135,0.00010377,2]
[330561197,1719571696268,4195.708995,0.00010377,2]
[330561227,1719571831955,-3482.72884248,0.00011097,2]
[330561228,1719571831964,-300.0,0.00011097,2]
[330561229,1719571831974,-5382.8324232,0.00011098,2]
[330561230,1719571831983,-650.91919934,0.00011098,2]
[330561231,1719571831992,-201.65137806,0.00011098,2]
[330561232,1719571832002,-5545.19309406,0.00011098,2]
[330561233,1719571832014,-265.1454,0.00011098,2]
[330561234,1719571832147,-457.29170079,0.00011098,2]
[330561235,1719571832160,-986.16015756,0.00011098,2]
[330561236,1719571832170,-282.93861702,0.00011098,2]
[330561237,1719571832180,-143.93453863,0.00011098,2]
[330561238,1719571832192,-331.29692748,0.00011098,2]
[330561239,1719571832202,-129.46807252,0.00011098,2]
[330561240,1719571832347,-25.8126455,0.00011098,2]
[330561242,1719571832357,-158.31418936,0.00011098,2]
[330561244,1719571832366,-155.80404999,0.00011098,2]
[330561246,1719571832375,-667.60039244,0.00011098,2]
[330561267,1719571837808,-796.44791203,0.00011098,2]
[330561270,1719571837820,-296.256384,0.00011098,2]
[330561272,1719571837832,-308.3,0.00011098,2]
[330561280,1719571838032,-973.93476286,0.00011098,2]
[330561281,1719571838044,-69.95225369,0.00011098,2]
[330561282,1719571838054,-150.0,0.00011178,2]
[330561283,1719571838064,-205.27551127,0.00011199,2]
[330561284,1719571838074,-155.0,0.00011199,2]
[330561285,1719571838083,-944.60374233,0.00011199,2]
[330561286,1719571838093,-420.0,0.00012193,2]
[330561287,1719571838103,-155.0,0.00012302,2]
[330561288,1719571838113,-269.07929124,0.00012314,2]
[330561289,1719571838123,-3092.01499812,0.0001251,2]
[330561290,1719571838133,-165.65028124,0.00012578,2]
[330561291,1719571838143,-250.0,0.00012628,2]